bitfinex/quotes_BTCUSD_20250108
["timestamp","ask_amount","ask_price","bid_price","bid_amount"]
[1736357932492,0.213835,93530.0,93507.0,0.213885]
[1736357932704,0.01912894,93530.0,93512.0,0.213876]
[1736357932902,0.02046561,93530.0,93507.0,0.213885]
[1736357933112,0.213837,93529.0,93507.0,0.213885]
[1736357933315,0.213837,93529.0,93505.0,0.21389]
[1736357933316,0.213841,93527.0,93505.0,0.21389]
[1736357933514,0.00133667,93526.0,93509.0,0.213881]
[1736357933716,0.00133667,93526.0,93514.0,0.213871]
[1736357934111,0.10404,93525.0,93515.0,0.10429976]
[1736357934335,0.10404,93525.0,93522.0,0.213852]
[1736357935136,0.10404,93525.0,93496.0,0.1129]
[1736357935307,0.10404,93525.0,93505.0,0.02111066]
[1736357935626,0.01912894,93524.0,93495.0,0.02128424]
[1736357935829,0.01912894,93524.0,93496.0,0.11392818]
[1736357936031,0.01912894,93524.0,93496.0,0.22682818]
[1736357936237,0.01912894,93524.0,93515.0,0.213868]
[1736357936650,0.12320894,93524.0,93520.0,0.213857]
[1736357936806,0.12320894,93524.0,93516.0,0.213865]
[1736357937033,0.12320894,93524.0,93499.0,0.213906]
[1736357937034,0.12320894,93524.0,93507.0,0.213886]
[1736357937259,0.12320894,93524.0,93510.0,0.21388]
[1736357937456,0.02046553,93523.0,93509.0,2.188]
[1736357937705,0.01912894,93523.0,93509.0,2.188]
[1736357938387,0.01912894,93523.0,93509.0,2.401881]
[1736357938593,0.01912894,93523.0,93509.0,2.188]
[1736357938820,0.10408,93524.0,93509.0,2.188]
[1736357938821,0.01912894,93522.0,93509.0,2.188]
[1736357939229,0.213865,93517.0,93509.0,2.188]
[1736357939627,0.10563657,93516.0,93509.0,2.188]
[1736357939941,0.213879,93511.0,93509.0,2.188]
[1736357940142,0.15,93514.0,93509.0,2.188]
[1736357940289,0.15,93512.0,93509.0,2.1765]
[1736357940723,0.25429976,93512.0,93509.0,2.1765]
[1736357941058,0.25429976,93512.0,93509.0,2.15772831]
[1736357941059,0.35429976,93510.0,93509.0,2.15772831]
[1736357941259,0.1,93487.0,93450.0,5e-05]
[1736357941433,0.66767276,93487.0,93452.0,0.214013]
[1736357941610,0.66767276,93487.0,93456.0,0.214003]
[1736357942024,0.717408,93487.0,93456.0,0.214003]
[1736357942253,0.717408,93487.0,93460.0,0.213993]
[1736357942430,0.39921524,93487.0,93457.0,0.214001]
[1736357942627,0.39921524,93487.0,93465.0,0.213982]
[1736357942833,0.39921524,93487.0,93450.0,5e-05]
[1736357942834,0.503515,93487.0,93450.0,5e-05]
[1736357943034,0.15,93472.0,93450.0,5e-05]
[1736357943290,0.15,93470.0,93450.0,5e-05]
[1736357943492,0.15,93468.0,93450.0,5e-05]
[1736357943781,0.09948,93473.0,93451.0,0.12729976]
[1736357943983,0.09948,93473.0,93451.0,0.10429976]
[1736357944197,0.15,93471.0,93450.0,5e-05]
[1736357944411,0.15,93461.0,93450.0,5e-05]
[1736357944614,0.1,93451.0,93450.0,5e-05]
[1736357944854,0.10429976,93451.0,93450.0,5e-05]
[1736357945056,0.30203846,93451.0,93450.0,5e-05]
[1736357945282,0.40070066,93451.0,93450.0,5e-05]
[1736357945484,0.10429976,93451.0,93405.0,0.02140344]
[1736357945662,0.1,93449.0,93417.0,0.214093]
[1736357945865,0.1,93449.0,93405.0,0.00980344]
[1736357945866,0.06313616,93451.0,93430.0,0.214062]
[1736357946063,0.06313616,93450.0,93433.0,0.023]
[1736357946266,0.06313616,93450.0,93409.0,0.1]
[1736357946267,0.16261616,93450.0,93435.0,0.237052]
[1736357946441,0.16261616,93450.0,93437.0,0.023]
[1736357946846,0.16261616,93450.0,93390.0,0.3647202]
[1736357946847,0.15,93441.0,93390.0,0.3647202]
[1736357947051,0.16261616,93450.0,93420.0,0.3647202]
[1736357947252,0.16261616,93450.0,93407.0,0.02152987]
[1736357947253,0.214037,93442.0,93421.0,0.10429976]
[1736357947474,0.15133781,93441.0,93422.0,0.10429976]
[1736357947636,0.03090964,93431.0,93413.0,0.214102]
[1736357947856,0.03090964,93431.0,93414.0,0.10429976]
[1736357948064,0.03090964,93431.0,93427.0,0.214068]
[1736357948269,0.03090964,93431.0,93428.0,0.10429976]
[1736357948513,0.03090964,93431.0,93427.0,0.428137]
[1736357948514,0.03090964,93431.0,93427.0,0.0756]
[1736357948687,0.15133793,93430.0,93409.0,0.0756]
[1736357949031,0.15,93427.0,93409.0,0.0756]
[1736357949233,0.09952,93426.0,93409.0,0.0756]
[1736357949637,0.03090964,93412.0,93409.0,0.0756]
[1736357950047,0.03090964,93412.0,93410.0,0.31840876]
[1736357950469,0.03090964,93412.0,93410.0,0.10429976]
[1736357950673,0.03090964,93412.0,93409.0,0.0756]
[1736357950885,0.03090964,93412.0,93410.0,0.10429976]
[1736357951086,0.03090964,93412.0,93411.0,0.023]
[1736357951289,0.03090964,93412.0,93411.0,0.12729976]
[1736357951495,0.09952,93424.0,93418.0,0.023]
[1736357951698,0.09952,93424.0,93418.0,0.12729976]
[1736357952107,0.03090964,93427.0,93420.0,0.023]
[1736357952314,0.03090964,93427.0,93423.0,0.023]
[1736357952733,0.214015,93451.0,93423.0,0.023]
[1736357952734,0.1,93488.0,93441.0,0.1]
[1736357952934,0.1,93488.0,93426.0,0.22829976]
[1736357952935,0.09053788,93511.0,93479.0,0.213951]
[1736357953141,0.213916,93495.0,93481.0,0.023]
[1736357953343,0.05738682,93496.0,93480.0,0.0785]
[1736357953543,0.09952,93494.0,93473.0,0.0212349]
[1736357953743,0.00133713,93493.0,93473.0,0.0212349]
[1736357953945,0.213922,93492.0,93471.0,0.21397]
[1736357954176,0.213937,93486.0,93464.0,0.0755]
[1736357954377,0.20381976,93494.0,93470.0,0.21397]
[1736357954587,0.21525619,93493.0,93470.0,0.21397]
[1736357954786,0.313439,93493.0,93470.0,0.21397]
[1736357954990,0.213908,93498.0,93471.0,0.10429976]
[1736357955205,0.10085709,93497.0,93473.0,0.213965]
[1736357955410,0.09952,93496.0,93475.0,0.023]
[1736357955592,0.09952,93496.0,93480.0,0.213948]
[1736357955818,0.09952,93496.0,93460.0,0.213993]
[1736357955819,0.00133699,93495.0,93467.0,0.213977]
[1736357955959,0.00133699,93495.0,93468.0,0.10429976]
[1736357955960,0.213937,93486.0,93468.0,0.10429976]
[1736357956170,0.09952,93496.0,93460.0,0.213993]
[1736357956349,0.15,93483.0,93456.0,0.214004]
[1736357956552,0.213998,93459.0,93448.0,0.0751]
[1736357956762,0.09952,93458.0,93431.0,0.0806]
[1736357956965,0.15,93452.0,93432.0,0.10429976]
[1736357957169,0.00133768,93456.0,93431.0,0.0806]
[1736357957372,0.09952,93455.0,93440.0,0.3647202]
[1736357957583,0.213945,93482.0,93441.0,0.10429976]
[1736357957799,0.1,93491.0,93441.0,0.10429976]
[1736357957800,0.09952,93481.0,93452.0,0.214013]
[1736357958012,0.18268337,93480.0,93454.0,0.214009]
[1736357958190,0.15,93478.0,93455.0,0.214006]
[1736357958391,0.06357828,93481.0,93461.0,0.023]
[1736357958644,0.06357828,93481.0,93477.0,0.023]
[1736357958842,0.06357828,93481.0,93478.0,0.10429976]
[1736357959042,0.06357828,93481.0,93472.0,0.213967]
[1736357959247,0.06357828,93481.0,93473.0,0.10429976]
[1736357959450,0.06357828,93481.0,93471.0,0.0766]
[1736357959691,0.06357828,93481.0,93473.0,0.213965]
[1736357959889,0.06357828,93481.0,93474.0,0.31826276]
[1736357960008,0.06357828,93480.0,93475.0,0.023]
[1736357960217,0.06357828,93480.0,93476.0,0.10429976]
[1736357961531,0.03090547,93478.0,93471.0,0.0766]
[1736357961739,0.03090547,93478.0,93453.0,0.0794]
[1736357961970,0.03090547,93478.0,93465.0,0.10429976]
[1736357962171,0.03090547,93478.0,93477.0,0.213956]
[1736357962516,0.00069747,93479.0,93478.0,0.023]
[1736357962644,0.00069747,93479.0,93478.0,0.12729976]
[1736357963048,0.09952,93511.0,93478.0,0.13740103]
[1736357963247,0.09952,93511.0,93472.0,0.02108477]
[1736357963248,8.51e-05,93525.0,93493.0,0.15]
[1736357963569,8.51e-05,93525.0,93497.0,0.023]
[1736357963769,8.51e-05,93525.0,93489.0,0.1]
[1736357963770,8.51e-05,93525.0,93504.0,0.213894]
[1736357963976,8.51e-05,93525.0,93505.0,0.10429976]
[1736357964174,8.51e-05,93525.0,93520.0,0.213857]
[1736357964378,8.51e-05,93525.0,93522.0,0.213853]
[1736357964578,8.51e-05,93525.0,93524.0,0.0479]
[1736357964787,8.51e-05,93525.0,93524.0,0.36604776]
[1736357965523,8.51e-05,93525.0,93524.0,0.51604776]
[1736357965721,0.0010851,93525.0,93524.0,0.63904776]
[1736357965959,0.0010851,93525.0,93524.0,0.6373513]
[1736357966165,0.0010851,93525.0,93524.0,0.16119976]
[1736357966368,0.0010851,93525.0,93524.0,0.11329976]
[1736357966618,0.0020851,93525.0,93524.0,0.14529976]
[1736357966878,0.0020851,93525.0,93524.0,0.12229976]
[1736357967324,0.0020851,93525.0,93524.0,0.20030074]
[1736357967537,0.0020851,93525.0,93524.0,0.35030074]
[1736357968204,0.0020851,93525.0,93524.0,0.018]
[1736357969384,0.25638486,93525.0,93524.0,0.018]
[1736357970150,0.25638486,93525.0,93524.0,0.0065]
[1736357970363,0.0010851,93525.0,93524.0,0.0065]
[1736357970698,0.10672154,93525.0,93524.0,0.0065]
[1736357970925,0.10672172,93525.0,93524.0,0.0065]
[1736357971110,0.25672173,93525.0,93524.0,0.0065]
[1736357971313,0.1510851,93525.0,93490.0,0.213924]
[1736357971515,0.15,93523.0,93491.0,0.33961516]
[1736357971722,0.213867,93516.0,93495.0,0.213913]
[1736357971932,0.213864,93517.0,93496.0,0.10429976]
[1736357972178,0.213878,93511.0,93491.0,0.0213924]
[1736357972376,8.51e-05,93525.0,93491.0,0.0213924]
[1736357972377,0.213869,93515.0,93491.0,0.10429976]
[1736357972580,0.21389,93506.0,93490.0,0.018]
[1736357972824,0.213902,93501.0,93490.0,0.009]
[1736357973074,0.09564,93500.0,93490.0,0.009]
[1736357973243,0.09564,93500.0,93496.0,0.009]
[1736357973681,0.213862,93518.0,93496.0,0.009]
[1736357973848,0.213789,93550.0,93497.0,0.10429976]
[1736357973849,0.03089468,93499.0,93497.0,0.10429976]
[1736357974426,0.03089468,93499.0,93496.0,0.009]
[1736357975288,0.03089468,93499.0,93490.0,0.009]
[1736357975461,0.21392,93493.0,93490.0,0.018]
[1736357975634,0.00133715,93492.0,93465.0,0.213982]
[1736357975843,0.21392,93493.0,93466.0,0.13059796]
[1736357976044,0.050213,93498.0,93496.0,0.009]
[1736357976546,0.050213,93498.0,93496.0,0.10429976]
[1736357977314,0.09564,93511.0,93496.0,0.10429976]
[1736357977315,0.01931832,93497.0,93496.0,0.10429976]
[1736357977730,0.01931832,93497.0,93485.0,0.213936]
[1736357977898,0.01931832,93497.0,93486.0,0.10429976]
[1736357978109,0.01931832,93497.0,93492.0,0.211421]
[1736357978321,0.01931832,93497.0,93494.0,0.213916]
[1736357978539,0.01931832,93497.0,93496.0,0.283512]
[1736357978740,0.03089468,93510.0,93498.0,0.1]
[1736357978943,0.03089468,93510.0,93509.0,0.023]
[1736357979096,0.03089468,93510.0,93509.0,0.12729976]
[1736357979533,0.0211588,93510.0,93509.0,0.37836902]
[1736357979833,0.03090931,93514.0,93513.0,0.273]
[1736357980033,0.03090931,93514.0,93513.0,0.37729976]
[1736357980636,0.00590931,93514.0,93513.0,0.27729976]
[1736357980838,0.00590931,93514.0,93513.0,0.37729976]
[1736357981751,0.00590931,93514.0,93513.0,0.27729976]
[1736357981928,0.00690931,93514.0,93513.0,0.31259796]
[1736357982130,0.00690931,93514.0,93513.0,0.13629976]
[1736357982480,0.00790931,93514.0,93513.0,0.12229976]
[1736357982812,0.00790931,93514.0,93513.0,0.018]
[1736357984107,0.00790931,93514.0,93513.0,0.12229976]
[1736357984314,0.00790931,93514.0,93513.0,0.29636897]
[1736357984524,0.00790931,93514.0,93513.0,0.36771336]
[1736357985633,0.00790931,93514.0,93513.0,0.12229976]
[1736357985928,0.00790931,93514.0,93513.0,0.39636898]
[1736357986122,0.00790931,93514.0,93513.0,0.29529976]
[1736357986305,0.00790931,93514.0,93513.0,0.39529976]
[1736357987040,0.00790931,93514.0,93513.0,0.29529976]
[1736357987225,0.09564,93549.0,93522.0,0.213852]
[1736357987385,0.09564,93549.0,93524.0,0.213848]
[1736357987586,0.213792,93549.0,93524.0,0.10429976]
[1736357987769,0.0956,93546.0,93524.0,0.10429976]
[1736357987975,0.0956,93546.0,93524.0,0.10536878]
[1736357988405,0.0010851,93525.0,93522.0,0.009]
[1736357988609,0.02145293,93525.0,93524.0,0.009]
[1736357988818,0.38430093,93525.0,93524.0,0.009]
[1736357989243,0.54941468,93525.0,93524.0,0.018]
[1736357989450,0.58520069,93525.0,93524.0,0.018]
[1736357989872,0.1,93503.0,93459.0,0.081]
[1736357990090,0.1,93493.0,93460.0,0.10429976]
[1736357990312,0.09697726,93492.0,93460.0,0.10536947]
[1736357990513,0.15,93490.0,93460.0,0.10536947]
[1736357990679,0.09564,93492.0,93462.0,0.21399]
[1736357990882,0.09564,93492.0,93463.0,0.10536945]
[1736357991080,0.14611041,93492.0,93473.0,0.213965]
[1736357991283,0.14611041,93492.0,93480.0,0.213948]
[1736357991284,0.05047041,93492.0,93480.0,0.213948]
[1736357991481,0.05047041,93492.0,93481.0,0.10536934]
[1736357991684,0.001,93490.0,93487.0,0.213933]
[1736357991947,0.001,93490.0,93489.0,0.236928]
[1736357992163,0.05047041,93492.0,93489.0,0.236928]
[1736357992164,0.05047041,93492.0,93489.0,0.31822776]
[1736357992313,0.05047041,93492.0,93489.0,0.10429976]
[1736357992314,0.05147041,93492.0,93489.0,0.10429976]
[1736357992516,0.05147041,93492.0,93478.0,0.213953]
[1736357992799,0.05047041,93491.0,93480.0,0.009]
[1736357992988,0.05047041,93491.0,93487.0,0.006]
[1736357992989,0.001,93490.0,93487.0,0.006]
[1736357993320,0.05047041,93491.0,93488.0,0.0010696]
[1736357993529,0.05047041,93491.0,93489.0,0.10429976]
[1736357993783,0.05047041,93491.0,93482.0,0.213944]
[1736357993953,0.05047041,93491.0,93483.0,0.10429976]
[1736357994152,0.05047041,93491.0,93477.0,0.213954]
[1736357994153,0.05047041,93491.0,93482.0,0.10429976]
[1736357994626,0.05047041,93490.0,93489.0,0.003]
[1736357994784,0.05047041,93490.0,93489.0,0.008]
[1736357994961,0.05047041,93490.0,93489.0,0.005]
[1736357995162,0.05047041,93490.0,93489.0,0.10429976]
[1736357995418,0.05047041,93490.0,93483.0,0.213942]
[1736357995650,0.05047041,93490.0,93484.0,0.10429976]
[1736357995774,0.05047041,93490.0,93479.0,0.21395]
[1736357995974,0.26439741,93490.0,93473.0,0.213965]
[1736357996181,0.36103741,93490.0,93489.0,0.003]
[1736357996386,0.310567,93490.0,93489.0,0.003]
[1736357996581,0.09764,93490.0,93489.0,0.003]
[1736357997630,0.09664,93490.0,93480.0,0.213948]
[1736357997827,0.1605572,93490.0,93482.0,0.213944]
[1736357997983,0.0649172,93490.0,93482.0,0.31824376]
[1736357998256,0.0649172,93490.0,93473.0,0.005]
[1736357998257,0.0659172,93490.0,93473.0,0.005]
[1736357998627,0.0659172,93490.0,93475.0,0.21396]
[1736357998628,0.0639172,93490.0,93475.0,0.21396]
[1736357998821,0.09512,93489.0,93480.0,0.005]
[1736357999119,0.427862,93488.0,93471.0,0.213968]
[1736357999530,0.15,93483.0,93473.0,0.005]
[1736357999662,0.15,93473.0,93451.0,0.214013]
[1736357999865,0.213981,93467.0,93452.0,0.10429976]
[1736358000065,0.213967,93472.0,93453.0,0.214011]
[1736358000265,0.15,93469.0,93453.0,0.10429976]
[1736358000585,0.165,93469.0,93452.0,0.00050731]
[1736358000778,0.00133738,93468.0,93452.0,0.00050731]
[1736358001226,0.0639172,93468.0,93453.0,0.10429976]
[1736358001441,0.0639172,93468.0,93453.0,0.10536979]
[1736358001673,0.0639172,93468.0,93453.0,0.10536968]
[1736358001842,0.0639172,93468.0,93452.0,0.00550731]
[1736358002048,0.213996,93460.0,93452.0,0.10880707]
[1736358002256,0.0649172,93468.0,93452.0,0.00450731]
[1736358002463,0.15,93455.0,93453.0,0.005]
[1736358002673,0.214005,93456.0,93453.0,0.005]
[1736358002674,0.56346876,93454.0,93453.0,0.005]
[1736358002874,0.15,93451.0,93450.0,3.1e-07]
[1736358003083,0.214105,93412.0,93393.0,0.0756]
[1736358003318,0.09516,93411.0,93393.0,0.0756]
[1736358003528,0.09516,93410.0,93393.0,0.0756]
[1736358003737,0.09516,93409.0,93401.0,0.10429976]
[1736358003891,0.09516,93414.0,93401.0,0.10429976]
[1736358004098,0.09516,93414.0,93402.0,0.00107048]
[1736358004293,0.0639172,93413.0,93403.0,0.10429976]
[1736358004480,0.2139172,93413.0,93403.0,0.10429976]
[1736358004685,0.0639172,93413.0,93403.0,0.10429976]
[1736358004896,0.0639172,93413.0,93403.0,0.31842476]
[1736358005095,0.0639172,93413.0,93404.0,0.00107046]
[1736358005313,0.0639172,93413.0,93410.0,0.214108]
[1736358005517,0.0649172,93413.0,93410.0,0.214108]
[1736358005757,0.0639172,93413.0,93412.0,0.214105]
[1736358005967,0.0639172,93413.0,93412.0,0.31840476]
[1736358006180,0.0649172,93413.0,93412.0,0.39306794]
[1736358006349,0.05012174,93413.0,93412.0,0.39306794]
[1736358006545,0.09053788,93432.0,93431.0,0.214061]
[1736358006770,0.08568827,93432.0,93431.0,0.66836076]
[1736358006924,0.00413482,93441.0,93440.0,0.35]
[1736358007131,0.45807354,93453.0,93452.0,0.373]
[1736358007328,0.09516,93499.0,93452.0,0.373]
[1736358007329,0.24260756,93461.0,93460.0,0.1]
[1736358007542,0.05380322,93465.0,93464.0,0.35]
[1736358007770,0.16409816,93470.0,93469.0,0.4859]
[1736358007973,0.31302309,93493.0,93492.0,0.213922]
[1736358008200,0.31302309,93493.0,93492.0,0.46822176]
[1736358008627,0.03089081,93512.0,93506.0,0.213888]
[1736358008847,0.03089081,93512.0,93507.0,0.10429976]
[1736358009043,0.03089081,93512.0,93471.0,0.42794]
[1736358009298,0.001,93493.0,93492.0,0.004]
[1736358009468,0.002,93493.0,93492.0,0.11329976]
[1736358009669,0.001,93493.0,93492.0,0.32222176]
[1736358010074,0.001,93493.0,93492.0,0.10829976]
[1736358010473,0.001,93493.0,93492.0,0.10936919]
[1736358010672,0.15,93518.0,93492.0,0.10536918]
[1736358010911,0.12605081,93527.0,93493.0,0.10429976]
[1736358011142,0.002,93512.0,93511.0,0.213878]
[1736358011289,0.002,93512.0,93511.0,0.31817776]
[1736358011494,0.001,93512.0,93511.0,0.31817776]
[1736358011856,0.03089081,93521.0,93520.0,0.213857]
[1736358012081,0.03089081,93521.0,93520.0,0.31815676]
[1736358012526,0.03089081,93535.0,93520.0,0.31815676]
[1736358012699,0.03089081,93535.0,93522.0,0.213853]
[1736358012898,0.03089081,93535.0,93524.0,0.213848]
[1736358013102,0.03089081,93535.0,93524.0,0.31814776]
[1736358013788,0.03089081,93535.0,93524.0,0.46814776]
[1736358014168,0.03089081,93534.0,93524.0,0.56814776]
[1736358014376,8.52e-05,93563.0,93559.0,0.213768]
[1736358014577,8.52e-05,93563.0,93562.0,0.10429976]
[1736358014839,8.52e-05,93563.0,93562.0,0.35536819]
[1736358015062,8.52e-05,93563.0,93562.0,0.47729976]
[1736358015666,8.52e-05,93563.0,93562.0,0.49889401]
[1736358015811,0.01338867,93574.0,93573.0,0.563736]
[1736358015975,8.51e-05,93588.0,93580.0,0.2]
[1736358016176,8.51e-05,93588.0,93580.0,0.45536796]
[1736358016383,8.51e-05,93619.0,93593.0,0.563691]
[1736358016583,8.51e-05,93619.0,93607.0,0.1]
[1736358016819,8.51e-05,93619.0,93618.0,0.213634]
[1736358017022,8.51e-05,93619.0,93618.0,0.10429976]
[1736358017301,0.1,93615.0,93571.0,0.213739]
[1736358017500,0.1,93615.0,93573.0,0.009]
[1736358017501,0.001,93574.0,93573.0,0.009]
[1736358017922,0.0453243,93574.0,93573.0,0.11329976]
[1736358018141,0.0443243,93574.0,93573.0,0.10536822]
[1736358018344,0.0443243,93574.0,93573.0,0.25536818]
[1736358018568,0.09508,93605.0,93576.0,0.15]
[1736358018771,0.001,93615.0,93591.0,0.15]
[1736358018975,0.001,93615.0,93582.0,0.15]
[1736358018976,8.51e-05,93619.0,93617.0,0.213635]
[1736358019198,8.51e-05,93619.0,93618.0,0.00106799]
[1736358019372,8.51e-05,93619.0,93601.0,0.15]
[1736358019373,8.51e-05,93619.0,93611.0,0.213648]
[1736358019572,8.51e-05,93619.0,93613.0,0.213645]
[1736358019772,8.51e-05,93619.0,93613.0,0.10429976]
[1736358019971,8.51e-05,93619.0,93614.0,0.001068]
[1736358020156,0.01929544,93618.0,93615.0,0.21364]
[1736358020351,0.01929544,93618.0,93617.0,0.213636]
[1736358020637,0.01929544,93618.0,93617.0,0.31793576]
[1736358020839,0.01929544,93618.0,93608.0,0.213656]
[1736358020988,0.01929544,93618.0,93609.0,0.10429976]
[1736358021209,0.01929544,93618.0,93574.0,0.1]
[1736358021408,0.01929544,93618.0,93572.0,0.213738]
[1736358021409,0.15,93616.0,93615.0,0.009]
[1736358021814,0.15,93616.0,93592.0,0.213692]
[1736358022013,0.15,93616.0,93594.0,0.213688]
[1736358022229,0.15,93616.0,93609.0,0.007]
[1736358022230,0.15,93614.0,93609.0,0.007]
[1736358022431,0.1235952,93617.0,93547.0,0.1]
[1736358022432,0.173,93612.0,93547.0,0.1]
[1736358022654,0.363693,93592.0,93567.0,0.213749]
[1736358022839,0.24508,93592.0,93568.0,0.00106856]
[1736358023013,0.09508,93592.0,93582.0,0.213714]
[1736358023194,0.09498,93592.0,93566.0,0.1]
[1736358023398,0.09498,93592.0,93574.0,0.213732]
[1736358023600,0.213652,93610.0,93574.0,0.213732]
[1736358023601,0.1,93640.0,93593.0,0.213691]
[1736358023810,0.313564,93649.0,93594.0,0.10429976]
[1736358023811,0.1232,93632.0,93594.0,0.10429976]
[1736358024040,0.1232,93632.0,93611.0,0.213649]
[1736358024240,0.09504,93631.0,93613.0,0.213645]
[1736358024441,0.09504,93631.0,93616.0,0.213638]
[1736358024661,0.09504,93631.0,93617.0,0.10536768]
[1736358024868,0.09504,93631.0,93618.0,0.213634]
[1736358025037,0.09504,93631.0,93618.0,0.31793376]
[1736358025462,0.0951249,93644.0,93618.0,0.31793376]
[1736358025688,0.01933924,93619.0,93618.0,0.31793376]
[1736358025839,0.02033924,93619.0,93618.0,0.31793376]
[1736358026051,0.01933924,93619.0,93618.0,0.31793376]
[1736358026251,8.49e-05,93644.0,93618.0,0.12729976]
[1736358026474,8.49e-05,93644.0,93609.0,0.3647202]
[1736358026475,8.49e-05,93644.0,93640.0,0.213582]
[1736358026634,8.49e-05,93644.0,93642.0,0.213579]
[1736358026834,8.49e-05,93644.0,93643.0,0.10536737]
[1736358027038,0.0133852,93643.0,93616.0,0.216638]
[1736358027294,0.0133852,93643.0,93623.0,0.213621]
[1736358027594,0.0133852,93643.0,93624.0,0.10326761]
[1736358027800,0.0133852,93643.0,93628.0,0.023]
[1736358028005,0.0133852,93643.0,93629.0,0.10429976]
[1736358028210,0.0133852,93643.0,93642.0,0.213579]
[1736358028409,0.0143852,93643.0,93642.0,0.10429976]
[1736358028623,0.001,93643.0,93642.0,0.10429976]
[1736358028829,0.002,93643.0,93642.0,0.10429976]
[1736358029031,0.002,93643.0,93642.0,0.25429976]
[1736358029236,0.002,93643.0,93612.0,0.2]
[1736358029439,0.003,93643.0,93642.0,0.009]
[1736358029873,0.03274584,93643.0,93642.0,0.009]
[1736358030080,0.03374584,93643.0,93642.0,0.11329976]
[1736358030649,0.03074584,93643.0,93642.0,0.10429976]
[1736358031085,0.03074584,93643.0,93642.0,0.11329976]
[1736358031638,0.03074584,93643.0,93642.0,0.10429976]
[1736358032016,0.03074584,93643.0,93642.0,0.11329976]
[1736358032231,0.03174584,93643.0,93642.0,0.11229976]
[1736358032582,0.03174584,93643.0,93642.0,0.12129976]
[1736358032781,7e-05,93652.0,93651.0,0.413558]
[1736358032985,7e-05,93652.0,93651.0,0.69085776]
[1736358033596,0.21342,93712.0,93687.0,0.213476]
[1736358033803,0.0001,93705.0,93687.0,0.213476]
[1736358034019,0.0001,93700.0,93680.0,0.213492]
[1736358034226,0.0001,93700.0,93659.0,0.21354]
[1736358034227,0.213457,93696.0,93659.0,0.21354]
[1736358034432,0.0001,93700.0,93663.0,0.0999]
[1736358034638,0.09496,93711.0,93687.0,0.213476]
[1736358034841,0.09496,93711.0,93687.0,0.008]
[1736358034842,0.0001,93700.0,93687.0,0.008]
[1736358035046,0.0001,93699.0,93687.0,0.017]
[1736358035215,0.0001,93699.0,93687.0,0.009]
[1736358035465,0.0001,93700.0,93687.0,0.009]
[1736358035673,0.15,93705.0,93685.0,0.213481]
[1736358035880,0.15,93705.0,93685.0,0.426962]
[1736358036088,0.0455,93723.0,93687.0,0.363476]
[1736358036346,0.0455,93723.0,93687.0,0.46777576]
[1736358036557,0.04683387,93723.0,93687.0,0.46777576]
[1736358036763,0.308364,93719.0,93687.0,0.31777576]
[1736358036966,0.0001,93715.0,93687.0,0.31777576]
[1736358037386,0.0001,93715.0,93687.0,0.32677576]
[1736358037591,0.0001,93691.0,93687.0,0.009]
[1736358037797,0.0001,93691.0,93650.0,5e-05]
[1736358037798,0.213509,93673.0,93650.0,5e-05]
[1736358038001,0.213607,93674.0,93650.0,5e-05]
[1736358038212,0.213513,93671.0,93650.0,5e-05]
[1736358038617,0.213529,93665.0,93650.0,5e-05]
[1736358038835,0.0001,93663.0,93650.0,5e-05]
[1736358039038,0.21628307,93663.0,93650.0,5e-05]
[1736358039240,0.00275207,93663.0,93662.0,0.00950731]
[1736358039446,0.00265207,93663.0,93662.0,0.00950731]
[1736358039855,0.00276149,93663.0,93662.0,0.00950731]
[1736358040282,0.02205951,93663.0,93662.0,0.00950731]
[1736358040492,0.02215951,93663.0,93662.0,0.00050731]
[1736358040695,0.02205951,93663.0,93662.0,0.00550731]
[1736358040895,0.02205951,93663.0,93662.0,0.01450731]
[1736358041051,0.02215951,93663.0,93662.0,0.00050731]
[1736358041251,0.60791027,93663.0,93662.0,0.00050731]
[1736358041450,0.58491027,93663.0,93662.0,0.01650731]
[1736358042257,0.60791027,93663.0,93662.0,0.01650731]
[1736358042460,0.363658,93651.0,93650.0,5e-05]
[1736358042661,0.61926706,93651.0,93650.0,5e-05]
[1736358043039,0.63866508,93651.0,93650.0,5e-05]
[1736358044361,0.24266732,93651.0,93626.0,0.213615]
[1736358044569,0.24276732,93651.0,93650.0,0.009]
[1736358044777,0.4919683,93651.0,93650.0,0.001]
[1736358045004,0.0026093,93651.0,93650.0,0.001]
[1736358045224,0.0026093,93651.0,93650.0,0.009]
[1736358045437,0.00050752,93663.0,93659.0,0.213539]
[1736358045649,0.00050752,93663.0,93659.0,0.53137776]
[1736358045861,0.00050752,93663.0,93661.0,0.213536]
[1736358046077,0.00050752,93663.0,93662.0,0.10429976]
[1736358046505,0.05793178,93680.0,93679.0,0.213495]
[1736358046714,0.05793178,93680.0,93679.0,0.31779476]
[1736358047954,0.05893178,93680.0,93679.0,0.32679476]
[1736358048365,0.05993178,93680.0,93679.0,0.018]
[1736358048777,0.06265498,93680.0,93679.0,0.01778286]
[1736358048994,0.05993178,93680.0,93679.0,0.01778286]
[1736358049213,0.06295989,93680.0,93679.0,0.33557762]
[1736358049638,0.05993178,93680.0,93679.0,0.33557762]
[1736358049849,0.05993178,93680.0,93679.0,0.61854113]
[1736358050107,0.05993178,93680.0,93679.0,0.51864113]
[1736358050381,0.05993178,93680.0,93679.0,0.33557762]
[1736358050580,0.05793178,93680.0,93679.0,0.31779476]
[1736358050910,0.05993178,93680.0,93679.0,0.33579476]
[1736358051530,0.05893178,93680.0,93679.0,0.32679476]
[1736358051734,0.05793178,93680.0,93679.0,0.31779476]
[1736358051932,0.05993178,93680.0,93679.0,0.33579476]
[1736358052971,0.03041435,93680.0,93679.0,0.33579476]
[1736358053170,0.03041435,93680.0,93679.0,0.32679476]
[1736358053415,0.02841435,93680.0,93679.0,0.31779476]
[1736358053593,8.5e-05,93688.0,93687.0,0.213476]
[1736358054542,8.5e-05,93688.0,93687.0,0.31777576]
[1736358054987,0.001085,93688.0,93687.0,0.32677576]
[1736358055382,8.5e-05,93688.0,93687.0,0.31777576]
[1736358055616,0.001085,93688.0,93687.0,0.32677576]
[1736358056780,8.5e-05,93688.0,93687.0,0.32677576]
[1736358057186,8.5e-05,93688.0,93687.0,0.33577576]